Cogmind - Beta 11.1 @@@ ROGUE MODE // 2022.05.20 @ 16:03:31 // AFD2020/Player2 Player: Jamuson Result: Destroyed by G-47 Trooper with Particle Gun Performance ------------- Evolutions (2) 1000 Regions Visited (8) 1600 Robots Destroyed (84) 420 Value Destroyed (2415) 2415 Prototype IDs (6) 120 Alien Tech Used (0) 0 Bonus (2366) 2366 TOTAL SCORE: 7921 Bonus ------- High Alert Combat Kills 511 Follower Combat Kills 2060 Entered Garrisons 200 Friendly Fire -405 Cogmind --------- Core Integrity 0/550 Matter 276/300 Energy 265/265 System Corruption 1% Temperature Cool (9) Movement Walking (120) Location -8/Garrison Parts ------- > --- POWER (1) -------- Improved Ion Engine > --- PROPULSION (3) --- Improved Carbon-fiber Leg Improved Carbon-fiber Leg Improved Carbon-fiber Leg > --- UTILITY (5) ------ Improved Cooling System Large Storage Unit Improved Sensor Array Light Armor Plating > --- WEAPON (2) ------- Heavy EM Pulse Gun Improved Assault Rifle > --- INVENTORY (15) --- Improved Ion Engine Carbon-fiber Leg Carbon-fiber Leg Carbon-fiber Leg Cooling System Improved Cooling System Large Matter Pod (150) Experimental Sensor Array System Shield Heavy EM Pulse Gun Improved Medium Laser Enhanced Autogun Rocket Launcher Katana Peak State ------------ > --- POWER ------------ Improved Ion Engine > --- PROPULSION ------- Improved Carbon-fiber Leg Improved Carbon-fiber Leg Improved Carbon-fiber Leg > --- UTILITY ---------- Improved Cooling System Large Storage Unit Improved Sensor Array Light Armor Plating Hardened Medium Armor Plating > --- WEAPON ----------- Improved Assault Rifle Enhanced Autogun > --- INVENTORY -------- Improved Ion Engine Improved Ion Engine Carbon-fiber Leg Carbon-fiber Leg Carbon-fiber Leg Cooling System Improved Cooling System Large Matter Pod Experimental Sensor Array System Shield Heavy EM Pulse Gun Heavy EM Pulse Gun Improved Medium Laser Rocket Launcher Katana [Rating: 37] Favorites ----------- Power Improved Ion Engine Engine Improved Ion Engine Propulsion Carbon-fiber Leg Leg Carbon-fiber Leg Wheel Compact Wheel Utility Large Storage Unit Device Cooling System Storage Large Storage Unit Protection Light Armor Plating Weapon Improved Medium Laser Energy Gun Improved Medium Laser Ballistic Gun Autogun Launcher Rocket Launcher Slashing Weapon Katana Build | -11 -10 -10 -9 -9 -9 -8 -8 -8 ------- Run | Scr Mat Min Mat Min Exi Min Mat Gar Slots Evolved 4 | . . . 2 . . . 2 . Power . | . . . . . . . . . Propulsion 1 | . . . . . . . 1 . Utility 3 | . . . 2 . . . 1 . Weapon . | . . . . . . . . . Parts Attached 70 | . 9 . 30 3 . 1 22 5 Power 4 | . . . 3 . . . 1 . Engine 4 | . . . 3 . . . 1 . Core . | . . . . . . . . . Reactor . | . . . . . . . . . Propulsion 14 | . 3 . 6 1 . . 4 . Treads . | . . . . . . . . . Leg 9 | . . . 4 1 . . 4 . Wheel 5 | . 3 . 2 . . . . . Hover . | . . . . . . . . . Flight . | . . . . . . . . . Utility 15 | . 3 . 5 . . 1 5 1 Device 6 | . 1 . 2 . . 1 2 . Storage 3 | . 2 . . . . . 1 . Processor . | . . . . . . . . . Hackware . | . . . . . . . . . Protection 6 | . . . 3 . . . 2 1 Artifact . | . . . . . . . . . Weapon 37 | . 3 . 16 2 . . 12 4 Energy Gun 12 | . 1 . 4 1 . . 5 1 Energy Cannon . | . . . . . . . . . Ballistic Gun 14 | . 2 . 9 . . . 2 1 Ballistic Cannon . | . . . . . . . . . Launcher 9 | . . . 3 1 . . 3 2 Special Weapon . | . . . . . . . . . Impact Weapon . | . . . . . . . . . Slashing Weapon 2 | . . . . . . . 2 . Piercing Weapon . | . . . . . . . . . Special Melee Weapon . | . . . . . . . . . Unidentified Prototypes 4 | . . . 3 . . . 1 . Parts Lost 9 | . . . 6 . . . 1 2 Power . | . . . . . . . . . Propulsion 4 | . . . 4 . . . . . Utility 5 | . . . 2 . . . 1 2 Weapon . | . . . . . . . . . Highest Loss Streak 2 | . . . 2 . . . 1 1 To Critical Strikes . | . . . . . . . . . Average Slot Usage (%) 92 | . 90 100 88 88 88 97 99 93 Engine 11 | . 14 14 11 11 11 11 9 9 Leg 16 | . 6 . 14 22 22 22 27 27 Wheel 6 | . 21 28 4 . . . . . Device 14 | . 5 14 15 11 11 20 18 18 Storage 11 | . 14 14 11 11 11 11 9 9 Protection 9 | . . . 9 11 11 11 17 11 Energy Gun 12 | . 10 . 8 20 22 22 15 8 Ballistic Gun 9 | . 17 28 13 . . . 1 8 Naked Turns . | . . . . . . . . . Heaviest Build 48 | 13 32 32 39 39 38 39 48 47 Greatest Support 54 | 20 32 32 32 30 30 30 54 54 Greatest Overweight (x) 12 | . 1 . 12 1 1 1 . . Average Overweight (x) . | . . . 1 1 1 1 . . Largest Inventory Capacity 15 | 8 15 15 15 15 15 15 15 15 Average Capacity 14 | 8 10 15 15 15 15 15 15 15 Most Carried 15 | 6 8 12 15 15 15 15 15 14 Average Carried 12 | 6 4 9 13 14 15 15 14 14 Final Capacity 15 | 8 15 15 15 15 15 15 15 15 Final Carried 15 | 6 8 12 14 15 15 15 14 14 Class Distribution -------------------- 90% | Mutant 9% | Scavenger-Mutant Dominant Class ---------------- Mutant | -10/Materials Mutant | -10/Mines Mutant | -9/Materials Mutant | -9/Mines Mutant | -9/Exiles Mutant | -8/Mines Mutant | -8/Materials Mutant | -8/Garrison Resources | -11 -10 -10 -9 -9 -9 -8 -8 -8 ----------- Run | Scr Mat Min Mat Min Exi Min Mat Gar Matter Collected 1835 | 167 400 135 627 30 . . 362 114 Remotely . | . . . . . . . . . Salvage Created 2895 | . 462 314 992 152 . . 715 260 Parts 166 | . 39 21 59 7 . . 28 12 Haulers Intercepted 5 | . . . 4 . . . 1 . Recyclers Shooed . | . . . . . . . . . Parts Field Recycled . | . . . . . . . . . Retrieved Matter . | . . . . . . . . . Parts Self-Destructed . | . . . . . . . . . Prevented . | . . . . . . . . . Kills | -11 -10 -10 -9 -9 -9 -8 -8 -8 ------- Run | Scr Mat Min Mat Min Exi Min Mat Gar Combat Hostiles Destroyed 65 | . 11 6 19 5 . . 16 8 Guns 44 | . 11 6 11 5 . . 8 3 AOE 21 | . . . 8 . . . 8 5 Classes Destroyed 11 | . 4 1 4 . . . 2 . Worker 3 | . 3 . . . . . . . Builder 1 | . . . . . . . 1 . Tunneler 1 | . . 1 . . . . . . Hauler 5 | . . . 4 . . . 1 . Recycler 2 | . . . 1 . . . 1 . Mechanic 1 | . . . . . . . 1 . Watcher 6 | . 2 . 3 . . . 1 . Swarmer 16 | . 5 . 4 2 . . 2 3 Grunt 36 | . 6 6 9 3 . . 9 3 Duelist 3 | . . . 2 . . . 1 . Sentry 10 | . . . 4 . . . 4 2 Best Kill Streak 7 | . 4 3 7 2 . . 7 6 Combat Bots Only 6 | . 3 2 5 2 . . 6 6 Max Kills in Single Turn 3 | . 1 1 3 2 . . 2 3 Gunslinging 1 | . . . . 1 . . 1 . Exploded 3 | . . . 3 . . . 2 3 Melee . | . . . . . . . . . Uniques/NPCs Destroyed . | . . . . . . . . . Combat | -11 -10 -10 -9 -9 -9 -8 -8 -8 -------- Run | Scr Mat Min Mat Min Exi Min Mat Gar Damage Taken 2459 | . 266 103 843 86 . . 569 592 Core 490 | . 75 15 178 16 . . 75 131 Absorbed by Shields . | . . . . . . . . . Core Remaining (%) 51 | 100 . 42 . . . 11 . . Volleys Fired 211 | . 31 12 68 11 . . 67 22 Largest 2 | . 2 2 2 2 . . 2 2 Hottest 112 | . 90 46 112 112 . . 112 79 Shots Fired 384 | . 59 24 120 21 . . 119 41 Gun 362 | . 59 24 114 21 . . 107 37 Cannon . | . . . . . . . . . Launcher 22 | . . . 6 . . . 12 4 Special . | . . . . . . . . . Kinetic 163 | . 32 24 89 . . . . 18 Thermal 175 | . 12 . 25 21 . . 107 10 Explosive 22 | . . . 6 . . . 12 4 Electromagnetic 24 | . 15 . . . . . . 9 Robot Hit Streak 16 | . 6 5 11 5 . . 13 16 Robot Miss Streak 6 | . 5 2 4 6 . . 4 1 Penetration Max . | . . . . . . . . . Secondary Targets 6 | . . . 1 3 . . 2 . Max Gunslinging Chain 1 | . . . 1 1 . . 1 . Shots Hit Robots 259 | . 35 16 82 11 . . 81 34 Core Hits 138 | . 21 9 37 5 . . 47 19 Critical Kills . | . . . . . . . . . Critical Parts Destroyed 1 | . . . 1 . . . . . Critical Strikes 17 | . . . 4 2 . . 11 . Burn 16 | . . . 3 2 . . 11 . Destroy 1 | . . . 1 . . . . . Melee Attacks 5 | . . . . . . . 5 . Impact . | . . . . . . . . . Slashing 5 | . . . . . . . 5 . Piercing . | . . . . . . . . . Sneak Attacks . | . . . . . . . . . Combat Hostiles . | . . . . . . . . . Follow-up Attacks . | . . . . . . . . . Damage Inflicted 6435 | . 569 280 1877 220 . . 2467 1022 Guns 4264 | . 528 280 1290 220 . . 1427 519 Cannons . | . . . . . . . . . Explosions 2169 | . 41 . 585 . . . 1040 503 Melee . | . . . . . . . . . Ramming 2 | . . . 2 . . . . . Kinetic 1909 | . 313 280 1048 . . . . 268 Thermal 2279 | . 115 . 242 220 . . 1427 275 Explosive 1976 | . . . 585 . . . 1040 351 Electromagnetic 269 | . 141 . . . . . . 128 Impact . | . . . . . . . . . Slashing . | . . . . . . . . . Piercing . | . . . . . . . . . Highest Corruption 4 | . 4 4 . . . . . 1 Average Corruption 2 | . 2 4 . . . . . 1 Corruption Purged . | . . . . . . . . . Corruption Blocked . | . . . . . . . . . Effects 22 | . 9 13 . . . . . . Message Errors 2 | . 2 . . . . . . . Matter Fused 5 | . 1 4 . . . . . . Heat Flow Errors 3 | . . 3 . . . . . . Energy Discharges 8 | . 5 3 . . . . . . Data Loss (minor) 3 | . 1 2 . . . . . . Data Loss (major) 1 | . . 1 . . . . . . Overload Shots . | . . . . . . . . . Overflow Damage 70 | . . . 30 . . . 23 17 Projectiles . | . . . . . . . . . Explosions 70 | . . . 30 . . . 23 17 Melee . | . . . . . . . . . Knockbacks . | . . . . . . . . . Impact . | . . . . . . . . . Kinetic . | . . . . . . . . . Secondary . | . . . . . . . . . Self-Inflicted Damage 59 | . . . 40 . . . . 19 Shots 2 | . . . 1 . . . . 1 Rammed 3 | . . . 3 . . . . . Targets Rammed 3 | . . . 3 . . . . . Kicked . | . . . . . . . . . Crushed . | . . . . . . . . . Highest Temperature 291 | . 291 260 23 2 . . 20 15 Average Temperature 59 | . 75 70 6 2 . . 10 9 Received Heat Transfer 912 | . 93 48 228 12 . . 270 261 Siege Activations . | . . . . . . . . . Robots Corrupted . | . . . . . . . . . Combat Hostiles . | . . . . . . . . . Parts Fried 1 | . . . . . . . . 1 Impact Corruptions . | . . . . . . . . . Robots Melted . | . . . . . . . . . Combat Hostiles . | . . . . . . . . . Parts Melted 8 | . 1 . 1 . . . 6 . Heat Transferred 5728 | . 272 . 712 592 . . 3718 434 Parts Sabotaged . | . . . . . . . . . Parts Stolen . | . . . . . . . . . Parts Stripped . | . . . . . . . . . Power Chain Reactions 2 | . 1 . . . . . . 1 Missiles Intercepted . | . . . . . . . . . Alert | -11 -10 -10 -9 -9 -9 -8 -8 -8 ------- Run | Scr Mat Min Mat Min Exi Min Mat Gar Peak Influence 954 | . 498 278 892 499 . . 954 831 Initial 322 | . . 82 29 322 . . . 259 Average 397 | . 273 168 584 412 . . 398 553 Maximum Alert Level 3 | . 2 1 3 2 . . 3 3 Low Security (%) 22 | 100 21 48 6 . . 100 20 . Level 1 27 | . 59 51 9 11 . . 47 38 Level 2 35 | . 18 . 58 88 . . 12 10 Level 3 14 | . . . 25 . . . 18 50 Level 4 . | . . . . . . . . . Level 5 . | . . . . . . . . . High Security . | . . . . . . . . . Max Security . | . . . . . . . . . Sterilizations 1 | . . . 1 . . . . . Squads Dispatched 22 | . 7 . 7 . . . 8 . Investigation 9 | . 5 . 2 . . . 2 . Extermination . | . . . . . . . . . Reinforcement 5 | . 2 . 1 . . . 2 . Assault 5 | . . . 4 . . . 1 . Garrison 3 | . . . . . . . 3 . Intercept . | . . . . . . . . . Searches Triggered . | . . . . . . . . . Construction Impeded . | . . . . . . . . . Haulers Reinforced . | . . . . . . . . . Active Scanning Responses . | . . . . . . . . . Cargo Convoy Interrupts . | . . . . . . . . . Stealth | -11 -10 -10 -9 -9 -9 -8 -8 -8 --------- Run | Scr Mat Min Mat Min Exi Min Mat Gar Distress Signals 8 | . 3 . 1 2 . . 2 . Communications Jammed . | . . . . . . . . . Distress Signals . | . . . . . . . . . Times Spotted 155 | . 20 6 49 12 . . 47 21 Peak Tracking Total 14 | . 3 2 14 4 . . 8 8 Tactical Retreats 3 | . . . 2 . . . . 1 Traps | -11 -10 -10 -9 -9 -9 -8 -8 -8 ------- Run | Scr Mat Min Mat Min Exi Min Mat Gar Traps Triggered 1 | . 1 . . . . . . . Indirectly . | . . . . . . . . . Trap Hack Attempts . | . . . . . . . . . Triggered . | . . . . . . . . . Disarmed . | . . . . . . . . . Reprogrammed . | . . . . . . . . . Reused . | . . . . . . . . . Traps Extracted . | . . . . . . . . . Installed . | . . . . . . . . . Triggered . | . . . . . . . . . Machines | -11 -10 -10 -9 -9 -9 -8 -8 -8 ---------- Run | Scr Mat Min Mat Min Exi Min Mat Gar Machines Disabled 4 | . . . 2 . . . 2 . Max in Single Turn 1 | . . . 1 . . . 1 . Machines Sabotaged . | . . . . . . . . . Garrisons Compromised . | . . . . . . . . . Overloaded Fab Kills . | . . . . . . . . . Hacking | -11 -10 -10 -9 -9 -9 -8 -8 -8 --------- Run | Scr Mat Min Mat Min Exi Min Mat Gar Machines Accessed 27 | . 8 . 7 . . . 12 . Terminals 24 | . 6 . 7 . . . 11 . Fabricators . | . . . . . . . . . Repair Stations . | . . . . . . . . . Recycling Units 2 | . 2 . . . . . . . Scanalyzers . | . . . . . . . . . Garrison Access 1 | . . . . . . . 1 . Total Hacks 89 | . 27 . 27 . . . 35 . Successful 45 | . 12 . 17 . . . 16 . Failed 44 | . 15 . 10 . . . 19 . Catastrophic 8 | . 2 . 3 . . . 3 . Database Lockouts . | . . . . . . . . . Manual 75 | . 25 . 19 . . . 31 . Terminals 84 | . 24 . 27 . . . 33 . Fabricators . | . . . . . . . . . Repair Stations . | . . . . . . . . . Recycling Units 3 | . 3 . . . . . . . Scanalyzers . | . . . . . . . . . Garrison Access 2 | . . . . . . . 2 . Terminal Hacks 28 | . 7 . 12 . . . 9 . Robot Analysis 6 | . 3 . 2 . . . 1 . Prototype ID Bank 1 | . . . 1 . . . . . Branch Access Points 2 | . 1 . . . . . 1 . Terminal Index 3 | . 1 . 1 . . . 1 . Alert Level 6 | . . . 4 . . . 2 . Unreport Threat 9 | . 2 . 3 . . . 4 . Hauler Manifests 1 | . . . 1 . . . . . Fabricator Hacks . | . . . . . . . . . Repair Station Hacks . | . . . . . . . . . Recycling Unit Hacks . | . . . . . . . . . Scanalyzer . | . . . . . . . . . Garrison Access Hacks 1 | . . . . . . . 1 . Unlock Access 1 | . . . . . . . 1 . Unauthorized Hacks 16 | . 5 . 5 . . . 6 . Terminals 14 | . 3 . 5 . . . 6 . Assimilate 1 | . . . . . . . 1 . Botnet 11 | . 3 . 4 . . . 4 . Operators 2 | . . . 1 . . . 1 . Fabricators . | . . . . . . . . . Repair Stations . | . . . . . . . . . Recycling Units 2 | . 2 . . . . . . . Tunnel 2 | . 2 . . . . . . . Scanalyzers . | . . . . . . . . . Garrison Access . | . . . . . . . . . Data Cores Recovered . | . . . . . . . . . Used . | . . . . . . . . . Hacking Detections 23 | . 6 . 6 . . . 11 . Full Trace Events 8 | . 4 . 2 . . . 2 . Feedback Events 1 | . 1 . . . . . . . Corruption 1 | . 1 . . . . . . . Feedback Blocked . | . . . . . . . . . Robot Schematics Acquired . | . . . . . . . . . Robots Built . | . . . . . . . . . Authchips . | . . . . . . . . . Time . | . . . . . . . . . Total Robot Build Rating . | . . . . . . . . . Part Schematics Acquired . | . . . . . . . . . Parts Built . | . . . . . . . . . Authchips . | . . . . . . . . . Time . | . . . . . . . . . Total Part Build Rating . | . . . . . . . . . Parts Repaired . | . . . . . . . . . Time . | . . . . . . . . . Parts Recycled . | . . . . . . . . . Recycled Matter . | . . . . . . . . . Retrieved Matter . | . . . . . . . . . Retrieved Components . | . . . . . . . . . Parts Scanalyzed . | . . . . . . . . . Part Schematics Acquired . | . . . . . . . . . Parts Damaged . | . . . . . . . . . Bothacking | -11 -10 -10 -9 -9 -9 -8 -8 -8 ------------ Run | Scr Mat Min Mat Min Exi Min Mat Gar Used RIF Installer . | . . . . . . . . . Robots Hacked . | . . . . . . . . . Non-combat . | . . . . . . . . . Combat . | . . . . . . . . . Robot Hacks Applied . | . . . . . . . . . Relay Couplers Released . | . . . . . . . . . Fabnet Peak Effective % . | . . . . . . . . . Robots Rewired . | . . . . . . . . . Allies Hacked . | . . . . . . . . . Hacks Repelled . | . . . . . . . . . Allies | -11 -10 -10 -9 -9 -9 -8 -8 -8 -------- Run | Scr Mat Min Mat Min Exi Min Mat Gar Total Allies 6 | . 1 4 . . . . 1 . Largest Group 5 | . 1 5 4 1 1 1 2 2 Highest-Rated Group 134 | . 59 134 105 71 71 71 91 92 Highest-Rated Ally 82 | . 59 63 70 71 71 71 81 82 Total Orders . | . . . . . . . . . Ally Attacks 249 | . 23 5 117 20 . . 67 17 Total Damage 6097 | . 334 106 2636 298 . . 1558 1165 Kills 90 | . 8 . 35 8 . . 26 13 Allies Corrupted . | . . . . . . . . . Allies Melted . | . . . . . . . . . Intel | -11 -10 -10 -9 -9 -9 -8 -8 -8 ------- Run | Scr Mat Min Mat Min Exi Min Mat Gar Robot Analysis Total 6 | . 3 . 2 . . . 1 . Derelict Logs Recovered 2 | . . 1 . 1 . . . . Drone Launches . | . . . . . . . . . Drone Recoveries . | . . . . . . . . . Exploration | -11 -10 -10 -9 -9 -9 -8 -8 -8 ------------- Run | Scr Mat Min Mat Min Exi Min Mat Gar Turns Passed 6383 | 3 719 640 2002 764 356 509 1049 341 Spaces Moved 3823 | 3 582 537 998 383 188 268 641 223 Core 10 | . . . 10 . . . . . Treads . | . . . . . . . . . Legs 2442 | 3 105 . 631 383 188 268 641 223 Wheels 1371 | . 477 537 357 . . . . . Hover . | . . . . . . . . . Flight . | . . . . . . . . . Fastest Speed 90 | 120 90 100 95 190 190 190 120 120 Average Speed 142 | 120 99 100 169 190 190 190 120 120 Slowest Speed 650 | 120 120 100 650 190 190 190 120 120 Overloaded Moves . | . . . . . . . . . Propulsion Burnouts . | . . . . . . . . . Robots Hopped . | . . . . . . . . . Cave-ins Triggered . | . . . . . . . . . Exploration Rate (%) 68 | 2 95 91 88 81 57 82 73 47 Regions Visited 8 Branch Regions 4 Pre-discovered Areas 3 | . 2 1 . . . . . . Known Exits Taken 2 | . 1 . . . . . 1 . Unknown Exits Taken 6 | 1 . 1 1 1 1 1 . . Scrap Searched 1 | . . 1 . . . . . . Spaces Dug 5 | . . . . . . . 5 . Terrain Destroyed 139 | . 3 . 45 . . . 59 32 Melee 5 | . . . . . . . 5 . Projectile . | . . . . . . . . . AOE 134 | . 3 . 45 . . . 54 32 Terrain Rammed . | . . . . . . . . . Walls Destroyed . | . . . . . . . . . Machines Disabled . | . . . . . . . . . Actions | -11 -10 -10 -9 -9 -9 -8 -8 -8 --------- Run | Scr Mat Min Mat Min Exi Min Mat Gar Total 4370 | 2 670 620 1183 397 187 268 790 253 Wait 211 | . 37 68 61 1 . . 41 3 Move 3816 | 2 581 536 997 382 187 267 641 223 Hop . | . . . . . . . . . Pick Up 19 | . 3 4 8 . . . 4 . Fast Attach 20 | . 5 . 11 . . 1 2 1 Attach 7 | . 1 . 4 . . . 2 . Detach 3 | . 2 . 1 . . . . . Swap 43 | . 3 . 15 3 . . 18 4 Drop 32 | . 7 . 15 . . . 10 . Fire 211 | . 31 12 68 11 . . 67 22 Melee 5 | . . . . . . . 5 . Ram 3 | . . . 3 . . . . . Kick . | . . . . . . . . . Crush . | . . . . . . . . . Escape Stasis . | . . . . . . . . . Rewire . | . . . . . . . . . Trap . | . . . . . . . . . Miscellaneous . | . . . . . . . . . Route ------- -11/Scrapyard -10/Materials (discovered 4 exits: *Mat x3 / *Min) -10/Mines (discovered 2 exits: *Mat x2) -9/Materials (discovered 4 exits: *Mat x2 / [*Min x2]) -9/Mines (discovered 3 exits: *Mat / *Exi / [*Zio]) -9/Exiles -8/Mines -8/Materials (discovered 3 exits: [*Fac x2] / Gar) -8/Garrison History --------- Turn | Location | Event 1 | -11/Scrapyard | Discovered new exit (range 0) 4 | -11/Scrapyard | Entered Materials 315 | -10/Materials | Discovered new exit (range 5) 316 | -10/Materials | Build established: Mutant 532 | -10/Materials | Discovered new exit (range 9) 583 | -10/Materials | Core integrity fell below 50% 590 | -10/Materials | Discovered new exit (range 9) 676 | -10/Materials | Identified exit to Mines 723 | -10/Materials | Entered Mines 806 | -10/Mines | Discovered new exit (range 10) 905 | -10/Mines | Received a Mining Laser from a helpful Derelict 939 | -10/Mines | Learned location of Zion (-7) 1069 | -10/Mines | Discovered new exit (range 5) 1114 | -10/Mines | Assisted by bots powering up and referring to "LRC-V3" 1153 | -10/Mines | Received a Rocket Launcher from a helpful Derelict 1190 | -10/Mines | Found a hidden stash of uninstalled traps 1236 | -10/Mines | Found a damaged Exp. Sensor Array with a note attached 1238 | -10/Mines | Found Prototype Device 1363 | -10/Mines | Entered Materials 1363 | -9/Materials | Accompanied by 3 allies 1363 | -9/Materials | Evolved 2 slots: Utility x2 1706 | -9/Materials | Discovered new exit (range 10) 1833 | -9/Materials | Discovered new exit (range 11) 2163 | -9/Materials | First assault squad dispatched 2216 | -9/Materials | Core integrity fell below 50% 2472 | -9/Materials | Discovered new exit (range 16) 2961 | -9/Materials | Sterilization system engaged 2961 | -9/Materials | Non-combat units ordered to evacuate 2973 | -9/Materials | Discovered new exit (range 12) 3061 | -9/Materials | Combat units ordered to evacuate 3085 | -9/Materials | Core integrity fell below 20% 3261 | -9/Materials | Ambient heat levels rising (+10) 3365 | -9/Materials | Entered Mines 3420 | -9/Mines | Met a Derelict bent on vengeance 3556 | -9/Mines | Excavation squad dispatched 3556 | -9/Mines | A large section of the Mines collapsed 3806 | -9/Mines | Excavation squad dispatched 3874 | -9/Mines | Discovered new exit (range 7) 3875 | -9/Mines | A Derelict revealed a hidden shortcut to a safe place 3914 | -9/Mines | Learned location of 1 exit from Proximity Caves 4121 | -9/Mines | Deemed a non-threat by the Exiles lab entrance 4121 | -9/Mines | Discovered new exit (range 5) 4129 | -9/Mines | Entered Exiles 4175 | -9/Exiles | Met 8R-AWN 4209 | -9/Exiles | Met EX-HEX 4262 | -9/Exiles | Met EX-BIN 4405 | -9/Exiles | Met EX-DEC 4468 | -9/Exiles | Discovered new exit (range 10) 4485 | -9/Exiles | Entered Mines 4983 | -8/Mines | Discovered new exit (range 4) 4994 | -8/Mines | Entered Materials 4994 | -8/Materials | Evolved 2 slots: Propulsion x1, Utility x1 5601 | -8/Materials | Discovered new exit (range 16) 5790 | -8/Materials | Garrison activated, responded to threat 5794 | -8/Materials | First assault squad dispatched 5850 | -8/Materials | Discovered new exit (range 13) 5890 | -8/Materials | Core integrity fell below 50% 6043 | -8/Materials | Identified exit to Garrison 6043 | -8/Materials | Entered Garrison 6043 | -8/Garrison | Accompanied by 1 ally 6076 | -8/Garrison | Triggered checkpoint 6175 | -8/Garrison | Triggered checkpoint 6179 | -8/Garrison | Triggered checkpoint 6185 | -8/Garrison | Core integrity fell below 20% 6218 | -8/Garrison | Triggered checkpoint 6382 | -8/Garrison | Triggered checkpoint 6382 | -8/Garrison | Triggered checkpoint 6384 | -8/Garrison | Destroyed by G-47 Trooper with Particle Gun Last Messages --------------- Player 2: "Do you trust me?" 06280_ Technician 3a reveals location of phase wall. 06309_ Y-45 Defender springs to life. 06314_ Technician 3a reveals location of Alarm Trap. 06314_ Hrd. Medium Armor Plating destroyed. 06315_ Chain reaction triggered in Imp. Ion Engine. 06315_ Technician 3a reveals location of Alarm Trap. 06318_ Alarm Trap short circuited. 06318_ Chain reaction triggered in Corrupted Imp. Ion Engine. 06318_ Y-45 Defender destroyed. Player 2: "Now that that's over with..." 06318_ An alarm sounds. 06318_ Alarm Trap short circuited. 06318_ An alarm sounds. 06318_ Y-45 Defender destroyed. 06329_ Acquired 26 matter. 06333_ Acquired 35 matter. 06335_ Acquired Lgt. Armor Plating. 06368_ Technician 3a reveals location of phase wall. 06382_ Beams of light sweep through the air. An alarm sounds. Map ----- +----------------------------------------------------+ | | | | | | | | | | | | | | | | | ????????????????????????????????????????????????? | | ????????????????????????????????????????????????? | | ????????????????????????????????????????????????? | | ????????????????????????????????????????????????? | | ????????????????????????????????????????????????? | | ????????????????????????????????????????????????? | | ????????????????????????????????????????????????? | | ????????????????????????????????????????????????? | | ????????????????????????????????????????????????? | | ????????????????????????????????????##??????????? | | ???????????????????????????????????+ ??????????? | | ???????????????????????????????????# #??????????? | | ???????????????????????????????????# #??????????? | | ???????????????????????????????????# #??????????? | | ???????????????????????????????????# #??????????? | | ???????????????????# ??????????????# #??????????? | | ????????????????#### gg##### ##### #??????????? | | ??????????+ @ o@ #??????????? | | ????????????????#################### #??????????? | | ???????????????????????????????????# #??????????? | | ???????????????????????????????????# #??????????? | | ???????????????????????????????????# #??????????? | | ???????????????????????????????????# #??????????? | | ???????????????????????????????????# #??????????? | | ???????????????????????????????????# #??????????? | | ???????????????????????????????????# #??????????? | | ???????????????????????????????????# #??????????? | | ???????????????????????????????????# #??????????? | | ?????????# ######################### ##########?? | | ????????? ^ #?? | | ????????# ^ #?? | | ????????? * #?? | | ????????????????### ########### ###### #?? | | ?????????????????# = % #?????????# #????? #?? | | ?????????????????# [ = ###????????# #????? #?? | | ?????????????????# % #????????# #????? #?? | | ?????????????????# = ##????????# ????? #?? | | ?????????????????# #?????????#+#????# #?? | | ?????????????????# ##?????????# #????# #?? | | ?????????????????# !#??????????# #????# #?? | | ?????????????????## ! !#??????????# #????# #?? | | ??????????????????##! !#??????????# #????# #? | +----------------------------------------------------+ Best States ------------- Heat Dissipation 58 Energy Generation 12 Energy Capacity 265 Matter Stores 300 Matter Capacity 300 Sight Range 16 Robot Scan Range 15 Terrain Scan Range 16 Terrain Scan Density 10 Armor Coverage 375 Evasion (%) 55 Item Schematics ----------------- None Robot Schematics ------------------ None Fabricated ------------ Nothing Alien Tech Used ----------------- None Achievements -------------- None Challenges ------------ None Player 2 | -11 -10 -10 -9 -9 -9 -8 -8 -8 ---------- Run | Scr Mat Min Mat Min Exi Min Mat Gar Slots Evolved 4 | . . 2 . . . 2 . . Power 1 | . . . . . . 1 . . Propulsion 1 | . . 1 . . . . . . Utility 1 | . . 1 . . . . . . Weapon 1 | . . . . . . 1 . . Parts Attached 93 | . 14 2 33 1 . . 36 7 Parts Lost 25 | . 1 . 12 1 . . 10 1 Damage Taken 3075 | . 269 17 1496 60 . . 857 376 Core 569 | . 55 . 150 11 . . 242 111 Player 2/Cogmind (%) 53 | . 42 . 45 40 . . 76 45 Absorbed by Shields . | . . . . . . . . . Damage Inflicted 5948 | . 334 64 2529 298 . . 1558 1165 Player 2/Cogmind (%) 48 | . 36 18 57 57 . . 38 53 Combat Hostiles Destroyed 83 | . 8 . 32 7 . . 23 13 Player 2/Cogmind (%) 56 | . 42 . 62 58 . . 58 61 Game ------ Seed FlakThermicPick Manual? 0 Play Time 00:58:55 Cumulative 187.7 hours Start 2022.05.20 @ 15:06:54 End 2022.05.20 @ 16:03:31 Sessions 1 Manual Loads 0 Difficulty Rogue Special Mode AFD2020/Player2 Game No. 77 Rogue 70 Adventurer 0 Explorer 7 Win Type - Total 1 Types 0/0/1/0/0/0/0/0/0 Lore% 61 Gallery% 58 Achievement% 48 Wizard Run 0 Options --------- ASCII 0 Keyboard 0 Movement Mouse Keybinds 0 Fullscreen 1 Font 16/Cog Map View 76x50 Tactical HUD 1 Map Filters NONE Filters NONE Steam 1 RUN: e8fe36d3-7a4a-4195-a633-2795d4d839d5